bitfinex-derivatives/quotes_BTCF0:USTF0_20250913
["timestamp","ask_amount","ask_price","bid_price","bid_amount"]
[1757793382352,0.01294,115820.0,115810.0,2.2932467]
[1757793384753,0.01294,115820.0,115810.0,2.2069434]
[1757793389153,0.01294,115820.0,115810.0,1.4246634]
[1757793389354,0.01294,115820.0,115810.0,2.2069034]
[1757793392854,0.01294,115820.0,115810.0,1.4246634]
[1757793393160,0.01294,115820.0,115810.0,2.2068634]
[1757793394759,0.01294,115820.0,115810.0,1.4246634]
[1757793394958,0.01294,115820.0,115810.0,2.2068234]
[1757793397253,0.01294,115820.0,115810.0,1.4246634]
[1757793397457,0.01294,115820.0,115810.0,2.2068234]
[1757793402160,0.01294,115820.0,115810.0,1.4246634]
[1757793402360,0.01294,115820.0,115810.0,2.2067834]
[1757793406764,0.01294,115820.0,115810.0,1.2218]
[1757793407064,0.01294,115820.0,115810.0,2.2067434]
[1757793408155,0.03989413,115820.0,115810.0,2.2067434]
[1757793410466,0.03989413,115820.0,115810.0,2.1053117]
[1757793410767,0.41429583,115820.0,115810.0,0.9932317]
[1757793410967,0.31286413,115820.0,115810.0,1.7752717]
[1757793414468,0.31286413,115820.0,115810.0,1.4144717]
[1757793416372,0.31286413,115820.0,115810.0,1.41448697]
[1757793420279,0.28989413,115820.0,115810.0,1.77528697]
[1757793420472,0.01294,115820.0,115810.0,1.77528697]
[1757793424178,0.01294,115820.0,115810.0,2.05528697]
[1757793427176,0.01294,115820.0,115810.0,1.95384]
[1757793427477,0.01294,115820.0,115810.0,2.05528697]
[1757793428779,0.01294,115820.0,115810.0,1.95384]
[1757793428979,0.01294,115820.0,115810.0,2.05528697]
[1757793448194,0.03987768,115820.0,115810.0,2.05528697]
[1757793452307,0.01294,115820.0,115810.0,2.05528697]
[1757793453714,0.01294,115820.0,115810.0,2.14159027]
[1757793455102,0.01294,115820.0,115810.0,2.50239027]
[1757793455407,0.01294,115820.0,115810.0,2.41608697]
[1757793457613,0.03988385,115820.0,115810.0,2.41608697]
[1757793466923,0.03988385,115820.0,115810.0,1.63404697]
[1757793467217,0.03988385,115820.0,115810.0,2.41584697]
[1757793467612,0.01294,115820.0,115810.0,2.41584697]
[1757793468915,0.01294,115820.0,115810.0,1.63404697]
[1757793469222,0.01294,115820.0,115810.0,2.41580697]
[1757793470018,0.01294,115820.0,115810.0,1.63404697]
[1757793470215,0.01294,115820.0,115810.0,2.41580697]
[1757793473318,0.01294,115820.0,115810.0,1.63404697]
[1757793473518,0.01294,115820.0,115810.0,2.41580697]
[1757793476519,0.01294,115820.0,115810.0,2.51718224]
[1757793481531,0.01294,115820.0,115810.0,2.61859336]
[1757793481726,0.01395,115830.0,115810.0,2.51718224]
[1757793482027,0.01395,115830.0,115820.0,0.56362224]
[1757793482225,0.04089406,115830.0,115820.0,1.43362224]
[1757793483525,0.04088709,115830.0,115820.0,1.43362224]
[1757793489236,0.01395,115830.0,115820.0,1.43362224]
[1757793493835,0.04087835,115830.0,115820.0,1.43362224]
[1757793494240,0.01395,115830.0,115820.0,1.43362224]
[1757793500357,0.01395,115830.0,115820.0,1.53503336]
[1757793501257,0.01395,115830.0,115820.0,1.43362224]
[1757793502262,0.01395,115830.0,115820.0,1.53503336]
[1757793505264,0.01395,115830.0,115820.0,1.43362224]
[1757793507567,0.04088456,115830.0,115820.0,1.43362224]
[1757793515973,0.04088456,115830.0,115820.0,1.2308]
[1757793516269,0.04088456,115830.0,115820.0,2.21506224]
[1757793517572,0.01395,115830.0,115820.0,1.43362224]
[1757793517869,0.01395,115830.0,115820.0,2.21506224]
[1757793519272,0.01395,115830.0,115820.0,1.43362224]
[1757793519573,0.01395,115830.0,115820.0,2.21502224]
[1757793520974,0.01395,115830.0,115820.0,1.2308]
[1757793521274,0.01395,115830.0,115820.0,2.21502224]
[1757793522073,0.01395,115830.0,115820.0,2.23481305]
[1757793525776,0.04089195,115830.0,115820.0,2.23481305]
[1757793526478,0.01395,115830.0,115820.0,2.23481305]
[1757793528577,0.04089382,115830.0,115820.0,2.23481305]
[1757793529067,0.01395,115830.0,115820.0,2.23481305]
[1757793530478,0.04090167,115830.0,115820.0,2.23481305]
[1757793530778,0.04090167,115830.0,115820.0,1.45341305]
[1757793530978,0.04090167,115830.0,115820.0,2.23581305]
[1757793536386,0.04090167,115830.0,115820.0,2.13440935]
[1757793540991,0.04090167,115830.0,115820.0,1.35200935]
[1757793541191,0.04090167,115830.0,115820.0,2.13404935]
[1757793559394,0.01395,115830.0,115820.0,2.13404935]
[1757793560196,0.04090645,115830.0,115820.0,2.13404935]
[1757793561199,0.01395,115830.0,115820.0,2.13404935]
[1757793575606,0.04090315,115830.0,115820.0,2.13404935]
[1757793576206,0.04090315,115830.0,115820.0,2.39037388]
[1757793576405,0.01395,115830.0,115820.0,2.39037388]
[1757793576904,0.01395,115830.0,115820.0,2.32176369]
[1757793577706,0.01276,115840.0,115820.0,2.57176369]
[1757793577902,0.01276,115840.0,115830.0,0.56363708]
[1757793578109,0.01276,115840.0,115830.0,1.40363708]
[1757793578307,0.01276,115840.0,115830.0,1.48992548]
[1757793578704,0.03969289,115840.0,115830.0,1.48992548]
[1757793579106,0.04069289,115840.0,115830.0,1.48992548]
[1757793579609,0.04069289,115840.0,115830.0,1.40363708]
[1757793580310,0.04069289,115840.0,115830.0,1.48992548]
[1757793580502,0.01376,115840.0,115830.0,1.48992548]
[1757793580704,0.01276,115840.0,115830.0,1.48992548]
[1757793581004,0.01376,115840.0,115830.0,1.40363708]
[1757793588822,0.01376,115840.0,115830.0,1.76443708]
[1757793597634,0.01376,115840.0,115830.0,1.85072548]
[1757793598022,0.01376,115840.0,115830.0,1.76443708]
[1757793598423,0.01376,115840.0,115830.0,1.85063314]
[1757793600134,0.001,115840.0,115830.0,2.10063314]
[1757793601327,0.0136,115840.0,115830.0,2.10063314]
[1757793601630,0.0136,115840.0,115830.0,2.01434474]
[1757793607036,0.0136,115840.0,115830.0,2.79558474]
[1757793607537,0.0136,115840.0,115830.0,2.01434474]
[1757793607835,0.0136,115840.0,115830.0,2.79558474]
[1757793609440,0.0136,115840.0,115830.0,2.01434474]
[1757793609638,0.0136,115840.0,115830.0,2.79558474]
[1757793610733,0.0136,115840.0,115830.0,2.01434474]
[1757793610935,0.0136,115840.0,115830.0,2.79554474]
[1757793611837,0.0136,115840.0,115830.0,2.01434474]
[1757793612044,0.0136,115840.0,115830.0,2.79554474]
[1757793612439,0.0136,115840.0,115830.0,2.01434474]
[1757793612631,0.0136,115840.0,115830.0,1.76434474]
[1757793612834,0.0136,115840.0,115830.0,2.54554474]
[1757793613035,0.0136,115840.0,115830.0,2.3428]
[1757793613236,0.04061935,115840.0,115830.0,2.54554474]
[1757793618544,0.0136,115840.0,115830.0,2.54554474]
[1757793621049,0.0136,115840.0,115830.0,2.3428]
[1757793621349,0.0136,115840.0,115830.0,2.54554474]
[1757793623041,0.0136,115840.0,115830.0,2.56540602]
[1757793632358,0.0136,115840.0,115830.0,1.78420602]
[1757793632555,0.0136,115840.0,115830.0,2.56536602]
[1757793632755,0.0136,115840.0,115830.0,2.56532602]
[1757793633358,0.0136,115840.0,115830.0,1.78420602]
[1757793633557,0.0136,115840.0,115830.0,2.56532602]
[1757793643264,0.0136,115840.0,115830.0,1.78420602]
[1757793643465,0.0136,115840.0,115830.0,2.56528602]
[1757793656068,0.0136,115840.0,115830.0,2.66665839]
[1757793656267,0.0136,115840.0,115830.0,2.56528602]
[1757793658375,0.0136,115840.0,115830.0,2.5652745]
[1757793660274,0.001,115840.0,115830.0,2.5652745]
[1757793660872,0.01413,115840.0,115830.0,2.5652745]
[1757793667475,0.01413,115840.0,115830.0,1.7841945]
[1757793667676,0.01413,115840.0,115830.0,2.5651945]
[1757793667973,0.01413,115840.0,115830.0,1.7841945]
[1757793668176,0.01413,115840.0,115830.0,2.5651945]
[1757793677678,0.01413,115840.0,115830.0,2.5651545]
[1757793678580,0.01413,115840.0,115830.0,1.7841945]
[1757793678780,0.01413,115840.0,115830.0,2.5651545]
[1757793686081,0.01413,115840.0,115830.0,1.7841945]
[1757793686281,0.01413,115840.0,115830.0,2.5651145]
[1757793690482,0.01413,115840.0,115830.0,1.7841945]
[1757793690675,0.01413,115840.0,115830.0,2.5650745]
[1757793718607,0.01413,115840.0,115830.0,2.56507682]
[1757793743622,0.01413,115840.0,115830.0,2.56571412]
[1757793747926,0.01413,115840.0,115830.0,1.84411412]
[1757793748123,0.01413,115840.0,115830.0,2.56571412]
[1757793753726,0.01413,115840.0,115830.0,2.66708189]
[1757793780356,0.01413,115840.0,115830.0,2.56570094]
[1757793783454,0.01413,115840.0,115830.0,2.65198934]
[1757793785462,0.01413,115840.0,115830.0,2.56570094]
[1757793787760,0.01413,115840.0,115830.0,2.82910094]
[1757793789759,0.01413,115840.0,115830.0,2.04822094]
[1757793789959,0.01413,115840.0,115830.0,2.83170094]
[1757793802164,0.01413,115840.0,115830.0,3.11935062]
[1757793802368,0.001,115840.0,115830.0,3.01798944]
[1757793802570,0.01316,115850.0,115830.0,3.01798944]
[1757793802868,0.01316,115850.0,115840.0,0.79262592]
[1757793803067,0.01316,115850.0,115840.0,1.68262592]
[1757793804073,0.01264,115860.0,115840.0,2.1336657]
[1757793804266,0.01264,115860.0,115850.0,1.34644236]
[1757793804467,0.01264,115860.0,115850.0,2.01343506]
[1757793804772,0.01264,115860.0,115850.0,2.21615742]
[1757793809680,0.01264,115860.0,115850.0,2.22480999]
[1757793814480,0.01264,115860.0,115850.0,2.48820999]
[1757793818282,0.01264,115860.0,115850.0,1.70528999]
[1757793818484,0.01264,115860.0,115850.0,2.48764999]
[1757793819782,0.01357,115870.0,115850.0,2.22424999]
[1757793819982,0.01357,115870.0,115860.0,0.56352236]
[1757793820182,0.03481,115870.0,115860.0,1.40352236]
[1757793821680,0.03481,115870.0,115860.0,1.47159127]
[1757793829001,0.03481,115870.0,115860.0,2.25395127]
[1757793832208,0.01357,115870.0,115860.0,2.05122891]
[1757793832407,0.01357,115870.0,115860.0,2.25395127]
[1757793832705,0.01357,115870.0,115860.0,1.26886891]
[1757793832907,0.01357,115870.0,115860.0,2.25387127]
[1757793833106,0.01357,115870.0,115860.0,1.47159127]
[1757793833404,0.01357,115870.0,115860.0,2.25563127]
[1757793835005,0.01357,115870.0,115860.0,1.47159127]
[1757793835206,0.01357,115870.0,115860.0,2.25571127]
[1757793840405,0.01357,115870.0,115860.0,2.25567355]
[1757793841109,0.01357,115870.0,115860.0,2.18760464]
[1757793848820,0.01357,115870.0,115860.0,1.40348464]
[1757793849011,0.04012946,115870.0,115860.0,2.18844464]
[1757793851213,0.04012946,115870.0,115860.0,1.40348464]
[1757793851418,0.04012946,115870.0,115860.0,1.98556]
[1757793851617,0.04012946,115870.0,115860.0,2.18824464]
[1757793857613,0.04012946,115870.0,115860.0,2.37585706]
[1757793857614,0.01357,115870.0,115860.0,2.37585706]
[1757793857820,0.01372,115890.0,115870.0,0.0862584]
[1757793858015,0.01372,115890.0,115880.0,1.44958696]
[1757793858218,0.0402779,115890.0,115880.0,2.33958696]
[1757793858420,0.01333,115910.0,115890.0,0.0862438]
[1757793858618,0.0364,115910.0,115900.0,0.56348464]
[1757793858817,0.0364,115910.0,115900.0,2.21714196]
[1757793859316,0.01333,115920.0,115900.0,2.78578494]
[1757793859518,0.0257,115930.0,115910.0,0.66482696]
[1757793859715,0.03903,115930.0,115920.0,1.45002696]
[1757793859916,0.03903,115930.0,115920.0,2.27002696]
[1757793860222,0.01333,115960.0,115920.0,2.64029046]
[1757793860413,0.01333,115960.0,115950.0,0.66482696]
[1757793860615,0.01333,115960.0,115950.0,2.24050696]
[1757793860818,0.01333,115970.0,115950.0,2.49050696]
[1757793861111,0.01333,115990.0,115960.0,0.66482696]
[1757793861313,0.0364,115990.0,115980.0,0.20268464]
[1757793861614,0.0364,115990.0,115980.0,0.10134232]
[1757793861920,0.0364,115990.0,115980.0,0.20268464]
[1757793862120,0.3972,115990.0,115980.0,0.10134232]
[1757793862323,0.0364,115990.0,115980.0,0.20268464]
[1757793862525,0.0364,115990.0,115980.0,0.10134232]
[1757793862726,0.0361,115980.0,115970.0,0.88710232]
[1757793862920,0.3969,115980.0,115970.0,0.88710232]
[1757793863115,0.6469,115980.0,115970.0,0.88710232]
[1757793863326,0.2861,115980.0,115970.0,0.78576]
[1757793863626,0.2861,115980.0,115970.0,0.88710232]
[1757793863823,0.6469,115980.0,115970.0,0.88710232]
[1757793864026,0.74824232,115980.0,115970.0,0.78576]
[1757793864527,0.01379,115970.0,115960.0,1.24758232]
[1757793864726,0.01379,115970.0,115960.0,1.30758232]
[1757793864927,0.0361,115970.0,115960.0,0.94678232]
[1757793865127,0.2861,115970.0,115960.0,0.94678232]
[1757793865527,0.6469,115970.0,115960.0,0.88678232]
[1757793865727,0.74824232,115970.0,115960.0,0.88678232]
[1757793866227,0.74824232,115970.0,115950.0,0.88694232]
[1757793866429,0.0361,115960.0,115950.0,0.8656]
[1757793866722,0.0361,115960.0,115950.0,0.96694232]
[1757793867229,0.0361,115960.0,115950.0,0.8656]
[1757793867422,0.0361,115960.0,115950.0,0.96694232]
[1757793868829,0.0361,115960.0,115950.0,0.96794232]
[1757793869030,0.0361,115960.0,115950.0,0.96894232]
[1757793869232,0.0361,115960.0,115950.0,1.07028464]
[1757793869440,0.01379,115960.0,115950.0,1.92108464]
[1757793871624,0.0398158,115960.0,115950.0,1.92108464]
[1757793872137,0.0398158,115960.0,115950.0,1.81974232]
[1757793872429,0.0398158,115960.0,115950.0,1.92108464]
[1757793874921,0.0398158,115960.0,115950.0,1.7184]
[1757793875124,0.0398158,115960.0,115950.0,1.92108464]
[1757793877429,0.0398158,115960.0,115950.0,1.24974232]
[1757793877733,0.0398158,115960.0,115950.0,1.76974232]
[1757793877929,0.0398158,115960.0,115950.0,1.6684]
[1757793878130,0.0398158,115960.0,115950.0,1.76974232]
[1757793878632,0.0398158,115960.0,115950.0,0.93894232]
[1757793879131,0.0621258,115960.0,115950.0,0.8376]
[1757793879329,0.0621258,115960.0,115950.0,0.93894232]
[1757793882241,0.0931992,115960.0,115950.0,0.93894232]
[1757793884238,0.1137835,115960.0,115950.0,0.93894232]
[1757793884542,0.0708892,115960.0,115950.0,2.01242696]
[1757793884737,0.0398158,115960.0,115950.0,1.55028464]
[1757793884931,0.0398158,115960.0,115950.0,1.6276]
[1757793885132,0.0398158,115960.0,115950.0,2.19108464]
[1757793885436,0.0448634,115960.0,115950.0,1.9884]
[1757793885636,0.0708892,115960.0,115950.0,2.19108464]
[1757793887248,0.0864259,115960.0,115950.0,1.9884]
[1757793887543,0.0864259,115960.0,115950.0,2.19108464]
[1757793888244,0.0398158,115960.0,115950.0,2.19108464]
[1757793889246,0.1019626,115960.0,115950.0,2.19108464]
[1757793890747,0.0398158,115960.0,115950.0,2.19108464]
[1757793892248,0.1019626,115960.0,115950.0,2.19108464]
[1757793892752,0.08632026,115960.0,115950.0,2.19108464]
[1757793894454,0.0398158,115960.0,115950.0,2.19108464]
[1757793898757,0.08632026,115960.0,115950.0,2.19108464]
[1757793899655,0.08632114,115960.0,115950.0,2.19108464]
[1757793900458,0.08632114,115960.0,115950.0,2.19076002]
[1757793903349,0.0398158,115960.0,115950.0,2.19076002]
[1757793904958,0.07081786,115960.0,115950.0,2.19076002]
[1757793905460,0.0398158,115960.0,115950.0,2.19076002]
[1757793906360,0.08631849,115960.0,115950.0,2.19076002]
[1757793908068,0.08631849,115960.0,115950.0,1.9884]
[1757793908260,0.08631849,115960.0,115950.0,2.19076002]
[1757793908765,0.0708197,115960.0,115950.0,2.19076002]
[1757793910367,0.0398158,115960.0,115950.0,2.19076002]
[1757793917466,0.01379,115960.0,115950.0,2.19076002]
[1757793918763,0.01379,115960.0,115950.0,2.52695962]
[1757793919160,0.01379,115970.0,115950.0,2.52695962]
[1757793919361,0.01379,115970.0,115960.0,0.46198001]
[1757793919671,0.01379,115970.0,115960.0,1.32198001]
[1757793919865,0.01379,115970.0,115960.0,1.75935222]
[1757793920071,0.01379,115970.0,115960.0,1.40817221]
[1757793921372,0.01379,115970.0,115960.0,1.32198001]
[1757793921770,0.01379,115970.0,115960.0,1.2208]
[1757793921971,0.01379,115970.0,115960.0,1.32198001]
[1757793926778,0.01379,115970.0,115960.0,1.50935222]
[1757793926970,0.01379,115980.0,115960.0,1.50935222]
[1757793927282,0.01379,115980.0,115970.0,1.36952002]
[1757793927471,0.01379,115980.0,115970.0,2.21952002]
[1757793928576,0.01379,115980.0,115970.0,2.22828493]
[1757793929169,0.01333,115990.0,115970.0,2.22828493]
[1757793929376,0.03652,115990.0,115980.0,0.3608]
[1757793929572,0.03652,115990.0,115980.0,1.43316002]
[1757793929772,0.01333,115990.0,115980.0,1.43316002]
[1757793930076,0.01333,115990.0,115980.0,1.30105945]
[1757793930775,0.01333,115990.0,115980.0,1.50341947]
[1757793934977,0.01333,115990.0,115980.0,1.30105945]
[1757793935183,0.01333,115990.0,115980.0,1.50341947]
[1757793935381,0.01333,115990.0,115980.0,1.03198001]
[1757793937691,0.01333,115990.0,115980.0,1.20198001]
[1757793940190,0.01333,115990.0,115980.0,1.1008]
[1757793940483,0.01333,115990.0,115980.0,1.20198001]
[1757793943387,0.01333,115990.0,115980.0,1.30316002]
[1757793947390,0.01333,115990.0,115980.0,1.1008]
[1757793947685,0.01333,115990.0,115980.0,1.30316002]
[1757793948684,0.03930945,115990.0,115980.0,1.30316002]
[1757793950693,0.01333,115990.0,115980.0,1.30316002]
[1757793951695,0.01333,115990.0,115980.0,1.1008]
[1757793951993,0.01333,115990.0,115980.0,1.30316002]
[1757793953300,0.03942675,115990.0,115980.0,1.30316002]
[1757793953597,0.03942675,115990.0,115980.0,1.1008]
[1757793953795,0.03942675,115990.0,115980.0,1.30316002]
[1757793955501,0.03942675,115990.0,115980.0,2.12684002]
[1757793956399,0.03942675,115990.0,115980.0,1.1008]
[1757793956600,0.03942675,115990.0,115980.0,2.12760002]
[1757793958098,0.03942675,115990.0,115980.0,1.30316002]
[1757793958301,0.03942675,115990.0,115980.0,2.12708002]
[1757793958600,0.01333,115990.0,115980.0,1.30316002]
[1757793958799,0.01333,115990.0,115980.0,2.12684002]
[1757793959198,0.03944546,115990.0,115980.0,2.12684002]
[1757793961103,0.03944546,115990.0,115980.0,1.92448]
[1757793961301,0.03944546,115990.0,115980.0,2.12684002]
[1757793961702,0.01333,115990.0,115980.0,2.12684002]
[1757793961904,0.01333,115990.0,115980.0,2.12704002]
[1757793962607,0.01333,115990.0,115980.0,2.22805275]
[1757793965403,0.01333,115990.0,115980.0,1.92468]
[1757793965707,0.01333,115990.0,115980.0,2.22805275]
[1757793968804,0.01333,115990.0,115980.0,1.40417275]
[1757793969006,0.01333,115990.0,115980.0,2.22769275]
[1757793969798,0.01333,115990.0,115980.0,2.1265685]
[1757793970005,0.01333,115990.0,115980.0,2.22769275]
[1757793973610,0.01333,115990.0,115980.0,1.40417275]
[1757793973815,0.01333,115990.0,115980.0,2.22737275]
[1757793975413,0.01333,115990.0,115980.0,2.22725275]
[1757793975710,0.01333,115990.0,115980.0,2.22677275]
[1757793976614,0.01333,115990.0,115980.0,2.22665275]
[1757793977014,0.01333,115990.0,115980.0,1.40417275]
[1757793977214,0.01333,115990.0,115980.0,2.1250885]
[1757793977907,0.01333,115990.0,115980.0,2.22621275]
[1757793979412,0.01333,115990.0,115980.0,1.3030485]
[1757793979616,0.01333,115990.0,115980.0,2.1250485]
[1757793979910,0.01333,115990.0,115980.0,1.3030485]
[1757793980109,0.01333,115990.0,115980.0,2.1244085]
[1757793982118,0.01333,115990.0,115980.0,1.3030485]
[1757793982524,0.26333,115990.0,115980.0,2.1236085]
[1757793983318,0.28944287,115990.0,115980.0,2.1236085]
[1757793987933,0.28944287,115990.0,115980.0,2.1246085]
[1757793988928,0.28944287,115990.0,115980.0,2.1256085]
[1757793990034,0.28944287,115990.0,115980.0,1.92336]
[1757793990230,0.28944287,115990.0,115980.0,2.1256085]
[1757793995539,0.28944287,115990.0,115980.0,1.92336]
[1757793995741,0.28944287,115990.0,115980.0,2.1256085]
[1757793998745,0.26333,115990.0,115980.0,2.1256085]
[1757793999441,0.01333,115990.0,115980.0,2.1256085]
[1757794005645,0.01333,115990.0,115980.0,1.92336]
[1757794005843,0.01333,115990.0,115980.0,2.1256085]
[1757794009735,0.0394479,115990.0,115980.0,2.1256085]
[1757794024353,0.0394479,115990.0,115980.0,2.1256218]
[1757794026850,0.01333,115990.0,115980.0,2.3756218]
[1757794027056,1.61333,116000.0,115980.0,2.4617986]
[1757794027262,1.63945281,116000.0,115990.0,0.4619309]
[1757794027458,1.61333,116000.0,115990.0,1.2819309]
[1757794028361,1.61333,116000.0,115990.0,1.55230254]
[1757794028562,1.61333,116000.0,115990.0,2.36834254]
[1757794028765,1.61333,116000.0,115990.0,2.45451194]
[1757794030361,1.61333,116000.0,115990.0,2.55564284]
[1757794030561,1.61333,116000.0,115990.0,2.45451194]
[1757794030966,1.61333,116000.0,115990.0,2.55564284]
[1757794031165,1.61333,116000.0,115990.0,2.45451194]
[1757794034170,1.61333,116000.0,115990.0,2.71791194]
[1757794035666,1.61333,116000.0,115990.0,1.90187194]
[1757794035973,1.61333,116000.0,115990.0,2.71627194]
[1757794036167,1.61333,116000.0,115990.0,1.90187194]
[1757794036367,1.61333,116000.0,115990.0,2.71559194]
[1757794036568,1.61333,116000.0,115990.0,2.81672284]
[1757794039969,1.61333,116000.0,115990.0,2.81552284]
[1757794040863,1.6,116000.0,115990.0,2.81552284]
[1757794041071,1.6,116000.0,115990.0,2.56552284]
[1757794041870,1.6,116000.0,115990.0,1.75300284]
[1757794042172,1.6,116000.0,115990.0,2.56516284]
[1757794043272,1.6,116000.0,115990.0,2.56496284]
[1757794043982,1.6,116000.0,115990.0,2.70826284]
[1757794044170,1.6,116000.0,115990.0,2.56496284]
[1757794044473,1.6,116000.0,115990.0,1.75300284]
[1757794044673,1.6,116000.0,115990.0,2.56488284]
[1757794045374,1.6,116000.0,115990.0,4.22004284]
[1757794045874,1.6,116000.0,115990.0,4.32004284]
[1757794046577,0.99205703,116000.0,115990.0,4.56956284]
[1757794047269,0.93468703,116000.0,115990.0,4.65577345]
[1757794047568,0.36174406,116000.0,115990.0,4.65577345]
[1757794047769,0.36174406,116000.0,115990.0,4.65777345]
[1757794047980,0.36174406,116000.0,115990.0,4.65877345]
[1757794048180,0.36174406,116000.0,115990.0,4.65817345]
[1757794048582,0.36174406,116000.0,115990.0,4.55692255]
[1757794048770,0.36174406,116000.0,115990.0,3.84737345]
[1757794049472,0.36174406,116000.0,115990.0,4.65781345]
[1757794050380,0.36174406,116000.0,115990.0,4.55668255]
[1757794050677,0.36174406,116000.0,115990.0,4.65781345]
[1757794051277,0.36174406,116000.0,115990.0,4.55668255]
[1757794053582,0.36174406,116000.0,115990.0,4.55548255]
[1757794054082,0.36174406,116000.0,115990.0,4.59858255]
[1757794054880,0.36174406,116000.0,115990.0,3.78934255]
[1757794055084,0.36174406,116000.0,115990.0,4.42584254]
[1757794055286,0.36174406,116000.0,115990.0,4.51201214]
[1757794055681,0.36174406,116000.0,115990.0,3.70313214]
[1757794055978,0.36174406,116000.0,115990.0,4.51185214]
[1757794056785,0.36174406,116000.0,115990.0,4.51177214]
[1757794057284,0.36174406,116000.0,115990.0,4.51153214]
[1757794059287,0.36174406,116000.0,115990.0,4.26153214]
[1757794059585,0.30647761,116000.0,115990.0,4.36266304]
[1757794059786,0.30647761,116000.0,115990.0,4.54887365]
[1757794059975,0.30647761,116000.0,115990.0,4.44887365]
[1757794060173,0.30647761,116000.0,115990.0,4.54887365]
[1757794060378,0.01374,116030.0,116010.0,0.0861481]
[1757794060578,0.01374,116030.0,116020.0,1.6302909]
[1757794060779,0.01374,116030.0,116020.0,2.4902909]
[1757794060979,0.01374,116030.0,116020.0,1.6827309]
[1757794061176,0.01374,116030.0,116020.0,2.4901709]
[1757794061586,0.01374,116030.0,116020.0,1.6827309]
[1757794061886,0.01374,116030.0,116020.0,2.4900509]
[1757794062385,0.01374,116030.0,116020.0,1.6827309]
[1757794062586,0.01374,116030.0,116020.0,2.4898509]
[1757794063088,0.01374,116030.0,116020.0,2.5601345]
[1757794063587,0.01374,116030.0,116020.0,1.6518836]
[1757794063781,0.01374,116030.0,116020.0,2.5598145]
[1757794064181,0.01374,116030.0,116020.0,1.7530145]
[1757794064387,0.01374,116030.0,116020.0,2.5596945]
[1757794066187,0.01374,116030.0,116020.0,2.5596545]
[1757794067390,0.3648709,116030.0,116020.0,2.4582436]
[1757794067583,0.3648709,116030.0,116020.0,1.6518836]
[1757794068091,0.3873609,116030.0,116020.0,1.36668]
[1757794068390,0.3873609,116030.0,116020.0,0.56]
[1757794068591,0.28623,116030.0,116020.0,1.3666]
[1757794068790,0.41342087,116030.0,116020.0,1.3666]
[1757794070092,0.41342087,116030.0,116020.0,0.56]
[1757794070293,0.41342087,116030.0,116020.0,1.36616]
[1757794070795,0.41342087,116030.0,116020.0,0.56]
[1757794070996,0.41342087,116030.0,116020.0,1.36616]
[1757794071496,0.41342087,116030.0,116020.0,0.56]
[1757794071695,0.41342087,116030.0,116020.0,1.3658]
[1757794072494,0.77422087,116030.0,116020.0,0.9658]
[1757794073896,0.77422087,116030.0,116020.0,0.16]
[1757794074193,0.77422087,116030.0,116020.0,0.96536]
[1757794075796,0.77422087,116030.0,116020.0,0.16]
[1757794075999,0.01329,116000.0,115990.0,2.10486881]
[1757794076200,0.01329,116000.0,115990.0,3.77990881]
[1757794077607,0.01329,116000.0,115990.0,3.88103971]
[1757794077808,0.01329,116000.0,115990.0,4.03090881]
[1757794078307,0.01329,116000.0,115990.0,4.49283971]
[1757794078499,0.01329,116000.0,115990.0,4.39270881]
[1757794078703,0.01329,116000.0,115990.0,4.49383971]
[1757794079207,0.01329,116000.0,115990.0,4.39270881]
[1757794079407,0.01329,116000.0,115990.0,4.49383971]
[1757794081297,0.01329,116000.0,115990.0,4.39270881]
[1757794081502,0.01329,116000.0,115990.0,4.49383971]
[1757794083209,0.01329,116000.0,115990.0,4.39270881]
[1757794083518,0.01329,116000.0,115990.0,4.49383971]
[1757794086414,0.01329,116000.0,115990.0,4.59490845]
[1757794088410,0.01329,116000.0,115990.0,4.43107805]
[1757794088607,0.01329,116000.0,115990.0,4.68107805]
[1757794093414,0.01329,116000.0,115990.0,4.94447805]
[1757794094318,0.01329,116000.0,115990.0,5.04557787]
[1757794095020,0.01329,116000.0,115990.0,4.94447805]
[1757794095714,0.01329,116000.0,115990.0,5.04557787]
[1757794095917,0.01329,116000.0,115990.0,4.94447805]
[1757794096316,0.01329,116000.0,115990.0,5.04557787]
[1757794100029,0.01329,116000.0,115990.0,4.94447805]
[1757794100229,0.01329,116000.0,115990.0,4.13943805]
[1757794100427,0.01329,116000.0,115990.0,4.96375805]
[1757794101727,0.01329,116000.0,115990.0,4.71411815]
[1757794101929,0.01329,116000.0,115990.0,4.62746845]
[1757794104033,0.01329,116000.0,115990.0,4.71363815]
[1757794107036,0.01329,116000.0,115990.0,3.88943815]
[1757794107235,0.01329,116000.0,115990.0,4.71199815]
[1757794108836,0.01329,116000.0,115990.0,3.80326845]
[1757794109037,0.01329,116000.0,115990.0,3.43876863]
[1757794109038,0.36438982,116000.0,115990.0,3.43876863]
[1757794109240,0.26329,116000.0,115990.0,4.26220863]
[1757794115246,0.36438982,116000.0,115990.0,4.26220863]
[1757794115445,0.26329,116000.0,115990.0,4.26220863]
[1757794119450,0.01329,116000.0,115990.0,4.26220863]
[1757794121344,0.01329,116000.0,115990.0,3.33766881]
[1757794121555,0.46548964,116000.0,115990.0,3.33766881]
[1757794121747,0.46548964,116000.0,115990.0,2.30753164]
[1757794122051,0.46548964,116000.0,115990.0,3.13169164]
[1757794122242,0.46548964,116000.0,115990.0,1.47653164]
[1757794125053,0.26329,116000.0,115990.0,1.47653164]
[1757794125252,0.46548964,116000.0,115990.0,1.47653164]
[1757794125746,0.46548964,116000.0,115990.0,1.77733164]
[1757794125947,0.46548964,116000.0,115990.0,2.10733164]
[1757794126153,0.36438982,116000.0,115990.0,2.10733164]
[1757794128655,0.46548964,116000.0,115990.0,2.10733164]
[1757794132955,0.46548964,116000.0,115990.0,2.20843146]
[1757794134058,0.21548964,116000.0,115990.0,1.28317164]
[1757794134256,0.48761964,116000.0,115990.0,1.41533164]
[1757794134456,0.51341976,116000.0,115990.0,1.41533164]
[1757794134658,0.51341976,116000.0,115990.0,1.02533164]
[1757794138765,0.48761964,116000.0,115990.0,1.02533164]
[1757794138962,0.94951946,116000.0,115990.0,0.182]
[1757794139165,0.8742294,116000.0,115990.0,0.002]
[1757794139364,0.8742294,116000.0,115990.0,0.82588]
[1757794145675,0.8742294,116000.0,115990.0,0.002]
[1757794145870,0.8742294,116000.0,115990.0,0.8248]
[1757794148376,0.7732003,116000.0,115990.0,0.8248]
[1757794149076,0.7732003,116000.0,115990.0,0.002]
[1757794149264,0.7732003,116000.0,115990.0,0.8236]